bitfinex/quotes_BTCUSD_20230901
["timestamp","ask_amount","ask_price","bid_price","bid_amount"]
[1693582496195,0.1092,25901.0,25900.0,0.51224665]
[1693582496419,0.2702,25901.0,25900.0,0.51224665]
[1693582496620,0.2702,25901.0,25900.0,0.75545297]
[1693582496824,0.2702,25901.0,25900.0,0.48145997]
[1693582499784,0.2602,25901.0,25900.0,0.48145997]
[1693582500231,0.2602,25901.0,25900.0,0.50145997]
[1693582500862,0.33106,25901.0,25900.0,0.50145997]
[1693582501074,0.48804802,25901.0,25900.0,0.50145997]
[1693582501250,0.55944802,25901.0,25900.0,0.50145997]
[1693582501492,0.48804802,25901.0,25900.0,0.50145997]
[1693582502553,0.2602,25901.0,25900.0,0.50145997]
[1693582503746,0.2502,25901.0,25900.0,0.50145997]
[1693582504917,0.2502,25901.0,25900.0,0.73060031]
[1693582506562,0.2502,25901.0,25900.0,0.45755655]
[1693582506774,0.2502,25901.0,25900.0,0.91401652]
[1693582507347,0.2502,25901.0,25900.0,0.91400479]
[1693582507550,0.2502,25901.0,25900.0,0.68486445]
[1693582508551,0.2502,25901.0,25900.0,0.91400479]
[1693582509421,0.0792,25901.0,25900.0,1.30109157]
[1693582509623,0.10038,25904.0,25903.0,0.04]
[1693582509828,0.10038,25904.0,25903.0,0.73144604]
[1693582510007,0.1192,25909.0,25903.0,1.09290601]
[1693582510261,0.1192,25909.0,25908.0,0.02]
[1693582510467,1.21946,25911.0,25908.0,0.095]
[1693582510678,1.21946,25911.0,25910.0,0.02]
[1693582510882,0.23099503,25916.0,25913.0,0.02]
[1693582511086,0.48569602,25917.0,25913.0,0.02]
[1693582511087,0.10026,25914.0,25913.0,0.02]
[1693582511501,0.21946,25914.0,25913.0,0.02]
[1693582512421,0.21946,25914.0,25913.0,0.021]
[1693582513104,0.22246,25914.0,25913.0,0.058]
[1693582513354,0.21946,25914.0,25913.0,0.021]
[1693582513554,0.793,25914.0,25913.0,0.038]
[1693582513762,1.38515801,25914.0,25913.0,0.038]
[1693582513928,1.40171801,25914.0,25913.0,0.037]
[1693582514139,1.44695801,25914.0,25913.0,0.073]
[1693582514350,1.68898433,25914.0,25913.0,0.073]
[1693582514565,1.65886433,25914.0,25913.0,0.073]
[1693582514805,1.64262433,25914.0,25913.0,0.037]
[1693582514941,1.60575638,25914.0,25913.0,0.057]
[1693582515146,1.38243801,25914.0,25913.0,0.02]
[1693582515345,1.38163801,25914.0,25911.0,0.02]
[1693582515579,0.40846,25914.0,25913.0,0.037]
[1693582515922,0.24646,25914.0,25913.0,0.023]
[1693582516240,0.28346,25914.0,25913.0,0.026]
[1693582516441,0.31264,25914.0,25913.0,0.023]
[1693582516689,0.31276,25914.0,25913.0,0.023]
[1693582516904,0.3127,25914.0,25913.0,0.023]
[1693582517074,0.31146,25914.0,25913.0,0.023]
[1693582517314,0.34846,25914.0,25913.0,0.023]
[1693582517501,0.39118,25914.0,25913.0,0.023]
[1693582517665,0.35058,25914.0,25913.0,0.023]
[1693582517877,0.35232,25914.0,25913.0,0.023]
[1693582518083,0.6178233,25914.0,25913.0,0.026]
[1693582518451,0.5113233,25914.0,25913.0,0.026]
[1693582519321,0.5013233,25914.0,25913.0,0.026]
[1693582519752,0.073,25914.0,25913.0,0.026]
[1693582519968,0.073,25914.0,25913.0,0.43308678]
[1693582520448,0.073,25914.0,25913.0,0.53308678]
[1693582521067,0.073,25914.0,25913.0,0.57173678]
[1693582521272,0.073,25914.0,25913.0,0.53308678]
[1693582521495,0.036,25914.0,25913.0,0.53008678]
[1693582521705,0.039,25914.0,25913.0,0.56708678]
[1693582521894,0.003,25914.0,25913.0,0.56408678]
[1693582522103,0.1192,25917.0,25913.0,0.52708678]
[1693582522303,0.003,25914.0,25913.0,0.252]
[1693582522505,0.1092,25917.0,25913.0,0.14]
[1693582522913,0.003,25914.0,25913.0,0.177]
[1693582523319,0.1092,25917.0,25916.0,0.02]
[1693582524879,0.1132,25917.0,25916.0,0.056]
[1693582525697,0.1032,25917.0,25916.0,0.056]
[1693582526096,0.1062,25917.0,25916.0,0.093]
[1693582528393,0.0962,25917.0,25916.0,0.093]
[1693582530196,0.31699885,25917.0,25916.0,0.093]
[1693582530560,0.30699885,25917.0,25916.0,0.093]
[1693582531586,0.39537885,25917.0,25916.0,0.093]
[1693582531793,0.40719885,25917.0,25916.0,0.073]
[1693582532000,0.21322,25917.0,25916.0,0.093]
[1693582532152,0.46995184,25917.0,25916.0,0.093]
[1693582532363,0.46818236,25917.0,25916.0,0.093]
[1693582532554,0.46254236,25917.0,25916.0,0.093]
[1693582532957,0.46308236,25917.0,25916.0,0.093]
[1693582533158,0.46278236,25917.0,25916.0,0.093]
[1693582533360,0.46068236,25917.0,25916.0,0.093]
[1693582533565,0.45858236,25917.0,25916.0,0.093]
[1693582533788,0.17242,25917.0,25916.0,0.168]
[1693582533992,0.17242,25917.0,25916.0,0.093]
[1693582533993,0.0862,25917.0,25916.0,0.093]
[1693582534955,0.31619145,25917.0,25916.0,0.093]
[1693582535892,0.0862,25917.0,25916.0,0.093]
[1693582536291,0.0862,25917.0,25916.0,0.11613939]
[1693582536541,0.34952082,25917.0,25916.0,0.11613939]
[1693582536956,0.34952082,25917.0,25916.0,0.093]
[1693582537155,0.33252082,25917.0,25916.0,0.02]
[1693582537381,0.33252082,25917.0,25916.0,0.027]
[1693582537382,0.33352082,25917.0,25916.0,0.027]
[1693582538107,0.41424082,25917.0,25916.0,0.02]
[1693582538238,0.42276082,25917.0,25916.0,0.053]
[1693582538418,0.42324082,25917.0,25916.0,0.053]
[1693582538632,0.42684082,25917.0,25916.0,0.09]
[1693582538834,0.42900082,25917.0,25916.0,0.09]
[1693582539038,0.15806,25917.0,25916.0,0.11313939]
[1693582539244,0.19004,25917.0,25916.0,0.11313939]
[1693582539478,0.40739709,25917.0,25916.0,0.11313939]
[1693582539681,0.40541709,25917.0,25916.0,0.11313939]
[1693582539892,0.39517709,25917.0,25916.0,0.11313939]
[1693582540100,0.39421709,25917.0,25916.0,0.11313939]
[1693582540299,0.38113709,25917.0,25916.0,0.11313939]
[1693582540500,0.37783709,25917.0,25916.0,0.11313939]
[1693582540707,0.37561709,25917.0,25916.0,0.11313939]
[1693582540910,0.37621709,25917.0,25916.0,0.11313939]
[1693582541124,0.37393709,25917.0,25916.0,0.11313939]
[1693582541345,0.36085709,25917.0,25916.0,0.11313939]
[1693582541816,0.35935709,25917.0,25916.0,0.11313939]
[1693582542021,0.35527709,25917.0,25916.0,0.11313939]
[1693582542250,0.1312,25917.0,25916.0,0.11313939]
[1693582542443,0.1312,25917.0,25916.0,0.69522617]
[1693582542444,0.006,25917.0,25916.0,0.69522617]
[1693582542590,0.006,25917.0,25916.0,0.62022617]
[1693582543769,0.1192,25920.0,25919.0,0.02]
[1693582543770,0.1152,25920.0,25919.0,0.02]
[1693582543978,0.1192,25920.0,25919.0,0.40708678]
[1693582544990,0.1522,25920.0,25919.0,0.41008678]
[1693582545834,0.1522,25920.0,25919.0,0.023]
[1693582546048,0.3877284,25920.0,25919.0,0.41008678]
[1693582546270,0.0598,25927.0,25926.0,0.06]
[1693582546271,0.0198,25927.0,25926.0,0.06]
[1693582546486,0.1192,25934.0,25930.0,0.02]
[1693582546697,0.1192,25934.0,25930.0,0.48208678]
[1693582547326,0.1192,25934.0,25930.0,0.40708678]
[1693582549160,0.0098,25931.0,25930.0,0.40708678]
[1693582549363,0.0128,25931.0,25930.0,0.76408678]
[1693582549567,0.0128,25931.0,25930.0,0.90408678]
[1693582549770,0.0138,25931.0,25930.0,1.08028678]
[1693582550215,0.0138,25931.0,25930.0,1.06028678]
[1693582552449,0.0138,25931.0,25930.0,0.96406324]
[1693582553461,0.0138,25931.0,25930.0,0.94406324]
[1693582554492,0.0038,25931.0,25930.0,0.94406324]
[1693582556145,0.0038,25931.0,25930.0,0.96406324]
[1693582557266,0.10098,25938.0,25930.0,0.96406324]
[1693582557267,0.09478,25938.0,25937.0,0.02]
[1693582557468,0.09478,25938.0,25937.0,0.48208678]
[1693582557685,0.1735,25940.0,25939.0,0.02]
[1693582557889,0.4201,25940.0,25939.0,0.095]
[1693582558066,0.4201,25940.0,25939.0,0.04294905]
[1693582558269,0.1735,25940.0,25939.0,0.04294905]
[1693582558677,0.1735,25940.0,25939.0,0.04594905]
[1693582559079,0.1735,25940.0,25939.0,0.04294905]
[1693582559279,0.1735,25940.0,25939.0,0.04594905]
[1693582559673,0.1735,25940.0,25939.0,0.43303583]
[1693582559843,0.1735,25940.0,25939.0,0.75303583]
[1693582559844,0.0198,25940.0,25939.0,0.75303583]
[1693582560500,0.0198,25940.0,25939.0,0.75603583]
[1693582560941,0.0198,25940.0,25939.0,0.75303583]
[1693582561151,0.2345336,25940.0,25939.0,0.45003583]
[1693582561295,0.0198,25940.0,25939.0,0.48703583]
[1693582561665,0.0198,25940.0,25939.0,0.48903583]
[1693582561892,0.0198,25940.0,25939.0,0.48703583]
[1693582562102,0.0098,25940.0,25939.0,0.52403583]
[1693582562303,0.1105,25941.0,25940.0,0.04]
[1693582562523,0.1105,25941.0,25940.0,0.42708678]
[1693582563473,0.33627996,25941.0,25940.0,0.42708678]
[1693582563874,0.33627996,25941.0,25940.0,0.45743449]
[1693582564273,0.3367,25941.0,25940.0,0.02]
[1693582564573,0.56248778,25941.0,25940.0,0.02]
[1693582564818,0.59312011,25941.0,25940.0,0.02]
[1693582564933,0.34174,25941.0,25940.0,0.02]
[1693582565133,0.34234,25941.0,25940.0,0.02]
[1693582565343,0.34234,25941.0,25940.0,0.057]
[1693582565344,0.56891526,25941.0,25940.0,0.057]
[1693582565540,0.3451,25941.0,25940.0,0.037]
[1693582565787,0.36442,25941.0,25940.0,0.02]
[1693582566002,0.36328,25941.0,25940.0,0.02]
[1693582566204,0.35974,25941.0,25940.0,0.057]
[1693582566417,0.37246,25941.0,25940.0,0.094]
[1693582566586,0.37246,25941.0,25940.0,0.057]
[1693582566587,0.36604,25941.0,25940.0,0.057]
[1693582566888,0.36946,25941.0,25940.0,0.057]
[1693582567085,0.38152,25941.0,25940.0,0.057]
[1693582567331,0.98662,25941.0,25940.0,0.037]
[1693582567535,0.9759,25941.0,25940.0,0.037]
[1693582567773,0.97578,25941.0,25940.0,0.037]
[1693582567969,0.95154,25941.0,25940.0,0.037]
[1693582568175,0.81456,25941.0,25940.0,0.037]
[1693582568425,0.81534,25941.0,25940.0,0.037]
[1693582568632,0.81504,25941.0,25937.0,0.02]
[1693582568803,0.1587,25938.0,25937.0,0.02]
[1693582569917,0.1587,25938.0,25937.0,0.022]
[1693582570362,0.22842,25938.0,25937.0,0.039]
[1693582570571,0.22884,25938.0,25937.0,0.046]
[1693582570778,0.3725839,25938.0,25937.0,0.046]
[1693582571211,0.4445839,25938.0,25937.0,0.046]
[1693582571421,0.3625839,25938.0,25937.0,0.046]
[1693582571640,0.4320639,25938.0,25937.0,0.046]
[1693582571842,0.4321239,25938.0,25937.0,0.046]
[1693582572060,0.21794,25938.0,25937.0,0.026]
[1693582572294,0.2762,25938.0,25937.0,0.026]
[1693582572495,0.27284,25938.0,25937.0,0.026]
[1693582572701,0.26354,25938.0,25937.0,0.026]
[1693582572905,0.26162,25938.0,25937.0,0.026]
[1693582573111,0.25334,25938.0,25937.0,0.026]
[1693582573314,0.25496,25938.0,25937.0,0.026]
[1693582573519,0.25646,25938.0,25937.0,0.026]
[1693582573777,0.94328678,25938.0,25937.0,0.026]
[1693582573984,0.94328678,25938.0,25929.0,0.03865]
[1693582573985,0.4075,25934.0,25929.0,0.02]
[1693582574198,0.4075,25934.0,25927.0,0.02]
[1693582574199,0.15483471,25933.0,25932.0,0.026]
[1693582574410,0.5238,25933.0,25932.0,0.026]
[1693582574619,0.6711,25933.0,25932.0,0.026]
[1693582574844,0.67236,25933.0,25932.0,0.026]
[1693582575056,0.6626,25933.0,25932.0,0.026]
[1693582575286,0.66326,25933.0,25932.0,0.026]
[1693582575500,0.66272,25933.0,25932.0,0.026]
[1693582575707,0.66242,25933.0,25930.0,0.02]
[1693582575915,0.1587,25931.0,25930.0,0.02]
[1693582576576,0.24978,25931.0,25930.0,0.02]
[1693582576788,0.26118,25931.0,25930.0,0.02]
[1693582576984,0.2574,25931.0,25930.0,0.02]
[1693582577193,0.25704,25931.0,25930.0,0.02]
[1693582577428,0.25762,25931.0,25930.0,0.051]
[1693582577641,0.25234,25931.0,25930.0,0.051]
[1693582577819,0.24784,25931.0,25930.0,0.051]
[1693582578050,0.24002,25931.0,25930.0,0.088]
[1693582578250,0.23576,25931.0,25930.0,0.088]
[1693582578451,0.23276,25931.0,25930.0,0.088]
[1693582578666,0.45857615,25931.0,25930.0,0.176]
[1693582578872,0.45911615,25931.0,25930.0,0.176]
[1693582579041,0.45917615,25931.0,25930.0,0.176]
[1693582579262,0.45923615,25931.0,25930.0,0.176]
[1693582579435,0.45917615,25931.0,25930.0,0.176]
[1693582579784,0.45875615,25931.0,25930.0,0.176]
[1693582580011,0.45821615,25931.0,25930.0,0.176]
[1693582580216,0.45791615,25931.0,25930.0,0.176]
[1693582580430,0.45515615,25931.0,25930.0,0.176]
[1693582580631,0.45611615,25931.0,25930.0,0.176]
[1693582580837,0.45773615,25931.0,25930.0,0.176]
[1693582581023,0.45755615,25931.0,25930.0,0.176]
[1693582581241,0.45749615,25931.0,25930.0,0.176]
[1693582581481,0.45275615,25931.0,25930.0,0.176]
[1693582581679,0.45269615,25931.0,25930.0,0.176]
[1693582581881,0.45311615,25931.0,25930.0,0.176]
[1693582582086,0.45317615,25931.0,25930.0,0.176]
[1693582582491,0.42493615,25931.0,25930.0,0.176]
[1693582582647,0.42679615,25931.0,25930.0,0.176]
[1693582582866,0.42757615,25931.0,25930.0,0.176]
[1693582583055,0.42751615,25931.0,25930.0,0.176]
[1693582583266,0.42763615,25931.0,25930.0,0.176]
[1693582583471,0.42493615,25931.0,25930.0,0.176]
[1693582583806,0.42523615,25931.0,25930.0,0.176]
[1693582584085,0.42841615,25931.0,25930.0,0.176]
[1693582584331,0.43123615,25931.0,25930.0,0.176]
[1693582584555,0.43111615,25931.0,25930.0,0.176]
[1693582584787,0.43213615,25931.0,25930.0,0.176]
[1693582585013,0.21676,25931.0,25930.0,0.176]
[1693582585214,0.22636,25931.0,25930.0,0.176]
[1693582585429,0.21928,25931.0,25930.0,0.176]
[1693582585638,0.44431899,25931.0,25930.0,0.176]
[1693582585849,0.21898,25931.0,25930.0,0.176]
[1693582586054,0.46261797,25931.0,25930.0,0.176]
[1693582586260,0.21856,25931.0,25930.0,0.176]
[1693582586479,0.21796,25931.0,25930.0,0.176]
[1693582586705,0.22132,25931.0,25930.0,0.176]
[1693582586924,0.22252,25931.0,25930.0,0.088]
[1693582587121,0.22006,25931.0,25930.0,0.088]
[1693582587335,0.22,25931.0,25930.0,0.088]
[1693582587544,0.2209,25931.0,25930.0,0.068]
[1693582587750,0.22006,25931.0,25930.0,0.088]
[1693582588133,0.22462,25931.0,25930.0,0.088]
[1693582588332,0.2239,25931.0,25930.0,0.088]
[1693582588535,0.22546,25931.0,25930.0,0.088]
[1693582588716,0.44191749,25931.0,25930.0,0.088]
[1693582588945,0.43705279,25931.0,25930.0,0.088]
[1693582589138,0.43717279,25931.0,25930.0,0.088]
[1693582589343,0.43789279,25931.0,25930.0,0.088]
[1693582589620,0.43717279,25931.0,25930.0,0.088]
[1693582589827,0.42889279,25931.0,25930.0,0.088]
[1693582590035,0.42667279,25931.0,25930.0,0.088]
[1693582590242,0.42727279,25931.0,25930.0,0.088]
[1693582590455,0.42709279,25931.0,25930.0,0.088]
[1693582590658,0.42793279,25931.0,25930.0,0.088]
[1693582590868,0.21586,25931.0,25930.0,0.088]
[1693582591076,0.21568,25931.0,25930.0,0.088]
[1693582591293,0.2222,25931.0,25930.0,0.09107297]
[1693582591477,0.2222,25931.0,25927.0,0.02]
[1693582591478,0.59391729,25931.0,25927.0,0.02]
[1693582591723,0.60739967,25931.0,25930.0,0.02114873]
[1693582591936,0.47403574,25931.0,25930.0,0.02114873]
[1693582592145,0.78124604,25931.0,25927.0,0.02]
[1693582592353,0.4097303,25931.0,25927.0,0.02]
[1693582592570,0.2384,25928.0,25927.0,0.02]
[1693582592985,0.2284,25928.0,25927.0,0.02]
[1693582593811,0.2284,25928.0,25927.0,0.055]
[1693582593812,0.2314,25928.0,25927.0,0.055]
[1693582594425,0.2334,25928.0,25927.0,0.081]
[1693582595450,0.46127748,25928.0,25927.0,0.081]
[1693582595663,0.35207748,25928.0,25927.0,0.081]
[1693582599131,0.35207748,25928.0,25927.0,0.10314228]
[1693582600590,0.41765748,25928.0,25927.0,0.10314228]
[1693582600796,0.42623748,25928.0,25927.0,0.10314228]
[1693582601010,0.42437748,25928.0,25927.0,0.10314228]
[1693582601207,0.42449748,25928.0,25927.0,0.10314228]
[1693582601424,0.42365748,25928.0,25927.0,0.10314228]
[1693582601621,0.42311748,25928.0,25927.0,0.10314228]
[1693582601822,0.42347748,25928.0,25927.0,0.10314228]
[1693582602072,0.42359748,25928.0,25927.0,0.10314228]
[1693582602277,0.42413748,25928.0,25927.0,0.10314228]
[1693582602458,0.42455748,25928.0,25927.0,0.10314228]
[1693582602632,0.54501748,25928.0,25927.0,0.10314228]
[1693582602874,0.54525748,25928.0,25927.0,0.10314228]
[1693582603076,0.54597748,25928.0,25927.0,0.10314228]
[1693582603274,0.54555748,25928.0,25927.0,0.10314228]
[1693582603473,0.54573748,25928.0,25927.0,0.10314228]
[1693582603796,0.54651748,25928.0,25927.0,0.10314228]
[1693582604020,0.54579748,25928.0,25927.0,0.10314228]
[1693582604203,0.54447748,25928.0,25927.0,0.10314228]
[1693582604437,0.54441748,25928.0,25927.0,0.10314228]
[1693582604642,0.54459748,25928.0,25927.0,0.10314228]
[1693582604822,0.54519748,25928.0,25927.0,0.10314228]
[1693582605049,0.54471748,25928.0,25927.0,0.10314228]
[1693582605254,0.54477748,25928.0,25927.0,0.10314228]
[1693582605476,0.54453748,25928.0,25927.0,0.10314228]
[1693582605685,0.54435748,25928.0,25927.0,0.10314228]
[1693582605868,0.47127748,25928.0,25927.0,0.10314228]
[1693582608939,0.54111748,25928.0,25927.0,0.10314228]
[1693582609139,0.54159748,25928.0,25927.0,0.10314228]
[1693582609316,0.54213748,25928.0,25927.0,0.10314228]
[1693582609531,0.54171748,25928.0,25927.0,0.10314228]
[1693582609722,0.5400497,25928.0,25927.0,0.10314228]
[1693582609927,0.5369297,25928.0,25927.0,0.10314228]
[1693582610130,0.5393297,25928.0,25927.0,0.10314228]
[1693582610454,0.44595025,25928.0,25927.0,0.10314228]
[1693582610652,0.45579025,25928.0,25927.0,0.10314228]
[1693582610845,0.46011025,25928.0,25927.0,0.10314228]
[1693582611026,0.46041025,25928.0,25927.0,0.10314228]
[1693582611224,0.46227025,25928.0,25927.0,0.10314228]
[1693582611454,0.46155025,25928.0,25927.0,0.10314228]
[1693582611606,0.89107025,25928.0,25927.0,0.061]
[1693582611809,0.91045025,25928.0,25927.0,0.061]
[1693582612006,0.08,25927.0,25923.0,0.02]
[1693582612215,0.1192,25924.0,25923.0,0.02]
[1693582612416,0.39323471,25924.0,25921.0,0.02]
[1693582612623,0.39323471,25924.0,25917.0,0.11129471]
[1693582612624,0.1192,25922.0,25917.0,0.02]
[1693582612829,0.15483471,25921.0,25920.0,0.02]
[1693582613033,0.22336,25921.0,25920.0,0.02]
[1693582613235,0.22504,25921.0,25920.0,0.02]
[1693582613478,0.23338,25921.0,25920.0,0.02]
[1693582613632,0.22198,25921.0,25920.0,0.02]
[1693582613853,0.35522,25921.0,25918.0,0.02]
[1693582614053,0.1192,25919.0,25918.0,0.02]
[1693582614468,0.21376,25919.0,25918.0,0.02]
[1693582614670,0.21376,25919.0,25916.0,0.03127257]
[1693582614671,0.7394,25919.0,25916.0,0.05127257]
[1693582615022,0.2384,25917.0,25914.0,0.02]
[1693582615359,0.2384,25917.0,25915.0,0.02]
[1693582615360,0.15483471,25917.0,25915.0,0.02]
[1693582615559,0.20878,25916.0,25915.0,0.02]
[1693582615767,0.20464,25916.0,25915.0,0.02]
[1693582615971,0.21412,25916.0,25915.0,0.02]
[1693582616181,0.20728,25916.0,25915.0,0.02]
[1693582616389,0.2029,25916.0,25915.0,0.02]
[1693582616599,0.20512,25916.0,25915.0,0.02]
[1693582616801,0.21436,25916.0,25915.0,0.02]
[1693582617006,0.21424,25916.0,25915.0,0.02]
[1693582617212,0.2158,25916.0,25915.0,0.02]
[1693582617418,0.23374,25916.0,25915.0,0.037]
[1693582617624,0.45387336,25916.0,25915.0,0.057]
[1693582617826,0.43567336,25916.0,25915.0,0.074]
[1693582618027,0.44473336,25916.0,25915.0,0.074]
[1693582618234,0.23998,25916.0,25915.0,0.054]
[1693582618439,0.50876,25916.0,25915.0,0.054]
[1693582618646,1.34182678,25916.0,25912.0,0.11129471]
[1693582618855,0.1192,25913.0,25912.0,0.11129471]
[1693582619054,0.1192,25913.0,25912.0,0.02]
[1693582619229,0.22108,25913.0,25912.0,0.02]
[1693582619450,0.22114,25913.0,25912.0,0.02]
[1693582619651,0.22222,25913.0,25912.0,0.04029094]
[1693582619866,0.22216,25913.0,25912.0,0.04029094]
[1693582619987,0.21922,25913.0,25912.0,0.04029094]
[1693582620191,0.4820556,25913.0,25912.0,0.04029094]
[1693582620411,0.4830756,25913.0,25912.0,0.04029094]
[1693582620617,0.20788,25913.0,25912.0,0.26852771]
[1693582620863,0.12008,25915.0,25912.0,0.26852771]
[1693582620864,0.10008,25915.0,25914.0,0.04]
[1693582621067,0.10008,25915.0,25914.0,0.63918048]
[1693582621274,0.10008,25915.0,25914.0,1.02041209]
[1693582621454,0.1192,25916.0,25914.0,1.02041209]
[1693582621685,0.1192,25916.0,25915.0,0.49846453]
[1693582622498,0.1192,25916.0,25915.0,0.40708678]
[1693582622937,0.3092,25916.0,25915.0,0.40708678]
[1693582624148,0.3122,25916.0,25915.0,0.40708678]
[1693582624348,0.3132,25916.0,25915.0,0.02]
[1693582624547,0.3102,25916.0,25915.0,0.02]
[1693582624762,0.3132,25916.0,25915.0,0.02]
[1693582625128,0.3172,25916.0,25915.0,0.028]
[1693582625834,0.19,25916.0,25915.0,0.02]
[1693582626233,0.194,25916.0,25915.0,0.02]
[1693582626434,0.3132,25916.0,25915.0,0.02]
[1693582627420,0.3132,25916.0,25915.0,0.03924571]
[1693582627781,0.3092,25916.0,25915.0,0.03924571]
[1693582628080,0.3092,25916.0,25915.0,0.04724571]
[1693582628081,0.3172,25916.0,25915.0,0.04724571]
[1693582628783,0.3132,25916.0,25915.0,0.03924571]
[1693582629127,0.3172,25916.0,25915.0,0.04724571]
[1693582630193,0.3072,25916.0,25915.0,0.04724571]
[1693582630620,0.3072,25916.0,25915.0,0.43433249]
[1693582631106,0.46203471,25916.0,25915.0,0.04724571]
[1693582631343,0.52803005,25916.0,25915.0,0.04724571]
[1693582631756,0.43376,25916.0,25915.0,0.02724571]
[1693582631926,0.45734,25916.0,25915.0,0.02724571]
[1693582632102,0.45338,25916.0,25915.0,0.02724571]
[1693582632325,1.00026,25916.0,25915.0,0.008]
[1693582632527,1.16958,25916.0,25915.0,0.008]
[1693582632868,1.1673,25916.0,25915.0,0.008]
[1693582633083,1.15326,25916.0,25915.0,0.008]
[1693582633260,1.15038,25916.0,25915.0,0.008]
[1693582633474,1.1445,25916.0,25915.0,0.008]
[1693582633674,1.52378678,25916.0,25915.0,0.008]
[1693582633874,1.55702678,25916.0,25915.0,0.008]
[1693582634085,1.55546678,25916.0,25915.0,0.008]
[1693582634288,1.55522678,25916.0,25915.0,0.008]
[1693582634547,1.57382678,25916.0,25915.0,0.008]
[1693582634753,1.70661324,25916.0,25915.0,0.008]
[1693582634953,0.02,25915.0,25913.0,0.02]
[1693582635230,0.1192,25914.0,25913.0,0.02]
[1693582635433,0.22288,25914.0,25913.0,0.02]
[1693582635653,0.22198,25914.0,25913.0,0.02]
[1693582635804,0.2233,25914.0,25913.0,0.02]
[1693582636017,0.22174,25914.0,25913.0,0.02]
[1693582636219,0.20596,25914.0,25913.0,0.02]
[1693582636422,0.20866,25914.0,25913.0,0.02]
[1693582636627,0.43646902,25914.0,25913.0,0.02]
[1693582637024,0.43916902,25914.0,25913.0,0.02]
[1693582637254,0.44096902,25914.0,25913.0,0.02]
[1693582637581,0.44482902,25914.0,25913.0,0.02]
[1693582637723,0.43482902,25914.0,25913.0,0.02]
[1693582638071,0.45350902,25914.0,25913.0,0.021]
[1693582638269,0.45146902,25914.0,25913.0,0.021]
[1693582638410,0.45092902,25914.0,25913.0,0.021]
[1693582638615,0.45086902,25914.0,25913.0,0.021]
[1693582638834,0.45506902,25914.0,25913.0,0.021]
[1693582639095,0.45288902,25914.0,25913.0,0.021]
[1693582639206,0.45102902,25914.0,25913.0,0.021]
[1693582639413,0.44616902,25914.0,25913.0,0.021]
[1693582639613,0.44496902,25914.0,25913.0,0.021]
[1693582639842,0.44250902,25914.0,25913.0,0.021]
[1693582640045,0.017,25914.0,25913.0,0.096]
[1693582640269,0.017,25914.0,25913.0,0.021]
[1693582640444,0.1362,25914.0,25913.0,0.021]
[1693582640720,0.3746243,25914.0,25913.0,0.021]
[1693582640901,0.4748243,25914.0,25913.0,0.021]
[1693582641103,0.4736243,25914.0,25913.0,0.021]
[1693582641277,0.4689443,25914.0,25913.0,0.021]
[1693582641481,0.4698443,25914.0,25913.0,0.021]
[1693582641679,0.4660643,25914.0,25913.0,0.021]
[1693582641887,0.4664243,25914.0,25913.0,0.021]
[1693582642099,0.22704,25914.0,25913.0,0.50308678]
[1693582642301,0.017,25914.0,25913.0,0.42808678]
[1693582642502,0.017,25914.0,25913.0,0.45095259]
[1693582645185,0.017,25914.0,25913.0,1.56330453]
[1693582645388,0.1362,25914.0,25913.0,0.45095259]
[1693582646107,0.1362,25914.0,25913.0,1.56330265]
[1693582646306,0.1362,25914.0,25913.0,0.45095259]
[1693582646483,0.1362,25914.0,25913.0,0.45065259]
[1693582647259,0.017,25914.0,25913.0,0.45065259]
[1693582649420,0.1362,25914.0,25913.0,0.45065259]
[1693582649604,0.37255441,25914.0,25913.0,0.06356581]
[1693582649834,0.1362,25914.0,25913.0,0.45065259]
[1693582650504,0.36710788,25914.0,25913.0,0.45065259]
[1693582650744,0.45842788,25914.0,25913.0,0.04356581]
[1693582650969,0.2427,25914.0,25913.0,0.04356581]
[1693582651224,0.4618474,25914.0,25913.0,0.04356581]
[1693582651440,0.4616074,25914.0,25913.0,0.04356581]
[1693582651671,0.4482274,25914.0,25913.0,0.04356581]
[1693582651897,0.4470274,25914.0,25913.0,0.04356581]
[1693582652118,0.1362,25914.0,25913.0,0.04356581]
[1693582653572,0.39014582,25914.0,25913.0,0.04356581]
[1693582656494,0.47126582,25914.0,25913.0,0.04356581]
[1693582656698,0.45746582,25914.0,25913.0,0.04356581]
[1693582656894,0.1362,25914.0,25913.0,0.04356581]
[1693582658864,0.40155662,25914.0,25913.0,0.04356581]
[1693582659707,0.47685662,25914.0,25913.0,0.04356581]
[1693582659911,0.47697662,25914.0,25913.0,0.04356581]
[1693582660112,0.47751662,25914.0,25913.0,0.04356581]
[1693582660315,0.40155662,25914.0,25913.0,0.04356581]
[1693582661219,0.48489662,25914.0,25913.0,0.04356581]
[1693582661410,0.48471662,25914.0,25913.0,0.04356581]
[1693582661612,0.49701662,25914.0,25913.0,0.04356581]
[1693582661858,0.49191662,25914.0,25913.0,0.04356581]
[1693582662062,0.47885662,25914.0,25913.0,0.04356581]
[1693582662459,0.47981662,25914.0,25913.0,0.04356581]
[1693582662664,0.47861662,25914.0,25913.0,0.04356581]
[1693582662870,0.48029662,25914.0,25913.0,0.04356581]
[1693582663079,0.48083662,25914.0,25913.0,0.04356581]
[1693582663496,0.47933662,25914.0,25913.0,0.04356581]
[1693582663671,0.47957662,25914.0,25913.0,0.04356581]
[1693582663850,0.47969662,25914.0,25913.0,0.04356581]
[1693582664235,0.47897662,25914.0,25913.0,0.04356581]
[1693582664438,0.47789662,25914.0,25913.0,0.04356581]